[Event "Early-Titled-Tuesday-Blitz-July-09-2024"]
[Site "Chess.com"]
[Date "2024.07.09"]
[Round "1"]
[White "Seochesspie"]
[Black "PapiPapita"]
[Result "0-1"]
[WhiteElo "2865"]
[BlackElo "2505"]
[TimeControl "180+1"]
[EndTime "8:08:05 PDT"]
[Termination "PapiPapita won by resignation"]

1. c4 {[%clk 0:03:00.9]} 1... Nf6 {[%clk 0:02:48.4]} 2. Nc3 {[%clk 0:03:00.4]}
2... b6 {[%clk 0:02:45.6]} 3. d4 {[%clk 0:02:58.9]} 3... e6 {[%clk 0:02:45.1]}
4. a3 {[%clk 0:02:58.2]} 4... Bb7 {[%clk 0:02:44.4]} 5. Qc2 {[%clk 0:02:57.8]}
5... d5 {[%clk 0:02:43.5]} 6. cxd5 {[%clk 0:02:54.6]} 6... Nxd5 {[%clk
0:02:44.4]} 7. Nf3 {[%clk 0:02:54.6]} 7... Be7 {[%clk 0:02:44.8]} 8. e4 {[%clk
0:02:51.3]} 8... Nxc3 {[%clk 0:02:45.1]} 9. bxc3 {[%clk 0:02:52.2]} 9... c5
{[%clk 0:02:45.9]} 10. Bb5+ {[%clk 0:02:51.6]} 10... Bc6 {[%clk 0:02:44.6]} 11.
Bd3 {[%clk 0:02:50]} 11... O-O {[%clk 0:02:40.1]} 12. O-O {[%clk 0:02:49.8]}
12... Qc7 {[%clk 0:02:39.4]} 13. Qe2 {[%clk 0:02:49.3]} 13... Nd7 {[%clk
0:02:35.4]} 14. h4 {[%clk 0:02:48.8]} 14... Rfe8 {[%clk 0:02:34.6]} 15. h5
{[%clk 0:02:47.8]} 15... h6 {[%clk 0:02:34.4]} 16. Bd2 {[%clk 0:02:44.9]} 16...
Rac8 {[%clk 0:02:34.1]} 17. a4 {[%clk 0:02:44.9]} 17... Nf6 {[%clk 0:02:29.5]}
18. Ne5 {[%clk 0:02:42.8]} 18... Bb7 {[%clk 0:02:27.5]} 19. Rad1 {[%clk
0:02:40.9]} 19... Red8 {[%clk 0:02:27.8]} 20. Bf4 {[%clk 0:02:34.2]} 20... Bd6
{[%clk 0:02:21.6]} 21. g4 {[%clk 0:02:29.7]} 21... Nd7 {[%clk 0:02:20.5]} 22. f3
{[%clk 0:01:42.8]} 22... Nxe5 {[%clk 0:02:16.9]} 23. dxe5 {[%clk 0:01:42.6]}
23... Bxe5 {[%clk 0:02:17.8]} 24. Bxe5 {[%clk 0:01:43.3]} 24... Qxe5 {[%clk
0:02:18.7]} 25. Qc2 {[%clk 0:01:36.1]} 25... Qf4 {[%clk 0:02:03.6]} 26. Kg2
{[%clk 0:01:35.3]} 26... Rd6 {[%clk 0:01:58.5]} 27. Be2 {[%clk 0:01:27.5]} 27...
Rcd8 {[%clk 0:01:56.3]} 28. Rxd6 {[%clk 0:01:27.6]} 28... Rxd6 {[%clk
0:01:56.7]} 29. Rd1 {[%clk 0:01:28.3]} 29... Bc6 {[%clk 0:01:51.5]} 30. Rxd6
{[%clk 0:01:27.8]} 30... Qxd6 {[%clk 0:01:52.4]} 31. Bb5 {[%clk 0:01:28.3]}
31... Bb7 {[%clk 0:01:42.5]} 32. Qe2 {[%clk 0:01:28.1]} 32... Kf8 {[%clk
0:01:34]} 33. e5 {[%clk 0:01:26.3]} 33... Qd5 {[%clk 0:01:33.7]} 34. Kg3 {[%clk
0:01:26.7]} 34... Ke7 {[%clk 0:01:32.6]} 35. Bc4 {[%clk 0:01:26]} 35... Qd7
{[%clk 0:01:32.1]} 36. Bb5 {[%clk 0:01:25.6]} 36... Qd5 {[%clk 0:01:32.1]} 37.
Bc4 {[%clk 0:01:25.6]} 37... Qd8 {[%clk 0:01:29.1]} 38. Bb5 {[%clk 0:01:19.6]}
38... Qc7 {[%clk 0:01:26.1]} 39. f4 {[%clk 0:01:15.5]} 39... Qd8 {[%clk
0:01:24]} 40. Bc4 {[%clk 0:01:15.5]} 40... Qd7 {[%clk 0:01:23.7]} 41. Bb5 {[%clk
0:00:55.8]} 41... Qd5 {[%clk 0:01:22.6]} 42. Bc4 {[%clk 0:00:49]} 42... Qc6
{[%clk 0:01:20.7]} 43. Bb5 {[%clk 0:00:48.9]} 43... Qh1 {[%clk 0:01:20.5]} 44.
Qd2 {[%clk 0:00:44.9]} 44... Qd5 {[%clk 0:01:10.9]} 45. Qe2 {[%clk 0:00:43.7]}
45... g6 {[%clk 0:01:03.5]} 46. hxg6 {[%clk 0:00:43.5]} 46... fxg6 {[%clk
0:01:04.4]} 47. Bc4 {[%clk 0:00:37.2]} 47... Qe4 {[%clk 0:00:42.8]} 48. Qxe4
{[%clk 0:00:37.1]} 48... Bxe4 {[%clk 0:00:42.5]} 49. Bb5 {[%clk 0:00:35.3]}
49... Bc2 {[%clk 0:00:36.2]} 50. Kh4 {[%clk 0:00:34.2]} 50... a6 {[%clk
0:00:34.6]} 51. Bxa6 {[%clk 0:00:33.7]} 51... Bxa4 {[%clk 0:00:35.2]} 52. Bd3
{[%clk 0:00:32.8]} 52... Be8 {[%clk 0:00:35.7]} 53. c4 {[%clk 0:00:28.9]} 53...
Kf7 {[%clk 0:00:33.8]} 54. Be4 {[%clk 0:00:28.2]} 54... Ba4 {[%clk 0:00:33.4]}
55. f5 {[%clk 0:00:26.9]} 55... exf5 {[%clk 0:00:20.7]} 56. gxf5 {[%clk
0:00:26.4]} 56... gxf5 {[%clk 0:00:21.6]} 57. Bd5+ {[%clk 0:00:22.5]} 57... Kg6
{[%clk 0:00:21.9]} 58. Be6 {[%clk 0:00:18.8]} 58... Bb3 {[%clk 0:00:21.2]} 59.
Bd5 {[%clk 0:00:19]} 59... b5 {[%clk 0:00:20.8]} 60. e6 {[%clk 0:00:19.2]} 60...
Kf6 {[%clk 0:00:20.3]} 0-1

[Event "Early-Titled-Tuesday-Blitz-July-09-2024"]
[Site "Chess.com"]
[Date "2024.07.09"]
[Round "1"]
[White "GrotBchess"]
[Black "Nbk90"]
[Result "1-0"]
[WhiteElo "2607"]
[BlackElo "2267"]
[TimeControl "180+1"]
[EndTime "8:08:07 PDT"]
[Termination "GrotBchess won by resignation"]

1. e4 {[%clk 0:02:59.6]} 1... e5 {[%clk 0:02:59.4]} 2. Nf3 {[%clk 0:02:57.4]}
2... Nc6 {[%clk 0:02:59.9]} 3. Bb5 {[%clk 0:02:57.2]} 3... a6 {[%clk 0:02:59.1]}
4. Ba4 {[%clk 0:02:56.8]} 4... Bc5 {[%clk 0:02:59.3]} 5. O-O {[%clk 0:02:56.3]}
5... Nge7 {[%clk 0:02:58.9]} 6. c3 {[%clk 0:02:54.8]} 6... Ng6 {[%clk
0:02:58.9]} 7. d4 {[%clk 0:02:54.8]} 7... Ba7 {[%clk 0:02:58.6]} 8. Bxc6 {[%clk
0:02:49.7]} 8... dxc6 {[%clk 0:02:58.2]} 9. Nxe5 {[%clk 0:02:48.9]} 9... Nxe5
{[%clk 0:02:57.9]} 10. dxe5 {[%clk 0:02:49.8]} 10... Qe7 {[%clk 0:02:55.8]} 11.
Bf4 {[%clk 0:02:48.4]} 11... g5 {[%clk 0:02:48.5]} 12. Be3 {[%clk 0:02:40.6]}
12... Bxe3 {[%clk 0:02:43.3]} 13. fxe3 {[%clk 0:02:41.5]} 13... Qxe5 {[%clk
0:02:43.1]} 14. Qd4 {[%clk 0:02:41.6]} 14... Qxd4 {[%clk 0:02:42.6]} 15. exd4
{[%clk 0:02:42.5]} 15... Be6 {[%clk 0:02:41.6]} 16. Nd2 {[%clk 0:02:41.8]} 16...
O-O-O {[%clk 0:02:41.6]} 17. Nb3 {[%clk 0:02:39.9]} 17... b6 {[%clk 0:02:35.5]}
18. Rae1 {[%clk 0:02:36.5]} 18... Rhe8 {[%clk 0:02:32.2]} 19. Nc1 {[%clk
0:02:35]} 19... f5 {[%clk 0:01:22.2]} 20. exf5 {[%clk 0:02:28.6]} 20... Bc4
{[%clk 0:01:20.9]} 21. Rxe8 {[%clk 0:02:20.6]} 21... Rxe8 {[%clk 0:01:20.8]} 22.
Rd1 {[%clk 0:02:19.1]} 22... Rf8 {[%clk 0:01:11]} 23. g4 {[%clk 0:02:14.9]}
23... h5 {[%clk 0:01:10.4]} 24. h3 {[%clk 0:02:14.4]} 24... hxg4 {[%clk
0:01:10.4]} 25. hxg4 {[%clk 0:02:15.3]} 25... Rh8 {[%clk 0:01:09.4]} 26. Nd3
{[%clk 0:02:05.8]} 26... Rh4 {[%clk 0:01:01.9]} 27. Ne5 {[%clk 0:01:31.5]} 27...
Bd5 {[%clk 0:00:55.5]} 28. Rd2 {[%clk 0:01:28.9]} 28... Rh1+ {[%clk 0:00:21]}
29. Kf2 {[%clk 0:01:26.9]} 29... Rh2+ {[%clk 0:00:21.2]} 30. Ke3 {[%clk
0:01:24.4]} 30... Rh3+ {[%clk 0:00:20.6]} 31. Ke2 {[%clk 0:01:24.1]} 31... Bxa2
{[%clk 0:00:18.3]} 32. c4 {[%clk 0:01:11.4]} 32... b5 {[%clk 0:00:17.7]} 33.
cxb5 {[%clk 0:01:08.9]} 33... axb5 {[%clk 0:00:15.8]} 34. f6 {[%clk 0:01:06.7]}
34... Rh2+ {[%clk 0:00:14.6]} 35. Kd3 {[%clk 0:01:01.3]} 35... Rh3+ {[%clk
0:00:08.6]} 36. Ke4 {[%clk 0:00:54.1]} 36... Bb1+ {[%clk 0:00:06.5]} 37. Nd3
{[%clk 0:00:51.3]} 37... Kd7 {[%clk 0:00:05]} 38. Rd1 {[%clk 0:00:18.5]} 38...
Bc2 {[%clk 0:00:01.9]} 39. Rd2 {[%clk 0:00:18.3]} 39... Bxd3+ {[%clk 0:00:02.3]}
40. Rxd3 {[%clk 0:00:18.3]} 40... Rxd3 {[%clk 0:00:03.2]} 41. Kxd3 {[%clk
0:00:18.7]} 41... Ke6 {[%clk 0:00:04.1]} 42. Kc3 {[%clk 0:00:18.4]} 42... Kxf6
{[%clk 0:00:04.3]} 43. Kb4 {[%clk 0:00:18.6]} 43... Ke6 {[%clk 0:00:04.6]} 44.
Kc5 {[%clk 0:00:18.6]} 44... Kd7 {[%clk 0:00:04.9]} 45. b4 {[%clk 0:00:17]}
45... Ke7 {[%clk 0:00:02]} 46. Kxc6 {[%clk 0:00:16.9]} 46... Ke6 {[%clk
0:00:02.5]} 47. Kc5 {[%clk 0:00:11.4]} 47... Kd7 {[%clk 0:00:01.5]} 48. Kxb5
{[%clk 0:00:11.5]} 48... Kd6 {[%clk 0:00:02.2]} 49. Kc4 {[%clk 0:00:11.6]} 49...
c6 {[%clk 0:00:02.6]} 50. Kc3 {[%clk 0:00:11.5]} 50... Kd5 {[%clk 0:00:02.8]}
51. Kd3 {[%clk 0:00:11.5]} 51... Kd6 {[%clk 0:00:03.3]} 52. Kc4 {[%clk
0:00:11.6]} 52... Ke6 {[%clk 0:00:02.5]} 53. Kc5 {[%clk 0:00:11.2]} 53... Kd7
{[%clk 0:00:03]} 54. d5 {[%clk 0:00:11.5]} 54... cxd5 {[%clk 0:00:03.2]} 55.
Kxd5 {[%clk 0:00:12.4]} 55... Kc7 {[%clk 0:00:03.3]} 56. Ke5 {[%clk 0:00:13]}
1-0

[Event "Early-Titled-Tuesday-Blitz-July-09-2024"]
[Site "Chess.com"]
[Date "2024.07.09"]
[Round "1"]
[White "eljanov"]
[Black "pavelalexandru07"]
[Result "1-0"]
[WhiteElo "2927"]
[BlackElo "2506"]
[TimeControl "180+1"]
[EndTime "8:08:12 PDT"]
[Termination "eljanov won by resignation"]

1. d4 {[%clk 0:02:59.1]} 1... d5 {[%clk 0:02:58.7]} 2. Nf3 {[%clk 0:02:59.5]}
2... Nf6 {[%clk 0:02:57]} 3. Bf4 {[%clk 0:03:00]} 3... c5 {[%clk 0:02:51.8]} 4.
e3 {[%clk 0:02:59.9]} 4... Nc6 {[%clk 0:02:51.8]} 5. Nbd2 {[%clk 0:03:00.3]}
5... e6 {[%clk 0:02:43.2]} 6. c3 {[%clk 0:03:00.3]} 6... Nh5 {[%clk 0:02:42]} 7.
Bg5 {[%clk 0:02:59]} 7... f6 {[%clk 0:02:41.6]} 8. Bh4 {[%clk 0:02:58.7]} 8...
g6 {[%clk 0:02:33.4]} 9. Be2 {[%clk 0:02:54]} 9... Be7 {[%clk 0:02:26.6]} 10.
O-O {[%clk 0:02:53]} 10... Ng7 {[%clk 0:02:22.4]} 11. dxc5 {[%clk 0:02:44.1]}
11... Bxc5 {[%clk 0:02:19.6]} 12. e4 {[%clk 0:02:38.8]} 12... O-O {[%clk
0:02:14.8]} 13. exd5 {[%clk 0:02:35.3]} 13... Qxd5 {[%clk 0:02:14.8]} 14. Bc4
{[%clk 0:02:25.8]} 14... Qd8 {[%clk 0:01:59]} 15. Ne4 {[%clk 0:02:18.1]} 15...
Be7 {[%clk 0:01:56.2]} 16. Qxd8 {[%clk 0:02:15]} 16... Nxd8 {[%clk 0:01:55.6]}
17. Nd4 {[%clk 0:02:08.5]} 17... g5 {[%clk 0:01:46.9]} 18. Bg3 {[%clk
0:02:04.4]} 18... Nf7 {[%clk 0:01:36.3]} 19. f3 {[%clk 0:01:53.9]} 19... e5
{[%clk 0:01:27.4]} 20. Nb5 {[%clk 0:01:45.3]} 20... Be6 {[%clk 0:01:27.4]} 21.
Be2 {[%clk 0:01:28]} 21... Rfc8 {[%clk 0:00:58.4]} 22. Rfd1 {[%clk 0:01:26.9]}
22... a6 {[%clk 0:00:54.6]} 23. Nbd6 {[%clk 0:01:26.3]} 23... Nxd6 {[%clk
0:00:52.4]} 24. Nxd6 {[%clk 0:01:26.6]} 24... Rc7 {[%clk 0:00:51.9]} 25. Bf2
{[%clk 0:01:24.6]} 25... Nf5 {[%clk 0:00:49.1]} 26. Ne4 {[%clk 0:01:12.8]} 26...
Kf7 {[%clk 0:00:46.3]} 27. a4 {[%clk 0:01:11.7]} 27... Bb3 {[%clk 0:00:41.2]}
28. Rd2 {[%clk 0:01:12.1]} 28... Rd8 {[%clk 0:00:39.4]} 29. Rxd8 {[%clk
0:01:11]} 29... Bxd8 {[%clk 0:00:40.3]} 30. g4 {[%clk 0:01:10.7]} 30... Ng7
{[%clk 0:00:39]} 31. a5 {[%clk 0:01:03.2]} 31... Be7 {[%clk 0:00:38]} 32. Nd2
{[%clk 0:00:30.5]} 32... Bd5 {[%clk 0:00:37.3]} 33. Bd3 {[%clk 0:00:30.4]} 33...
h5 {[%clk 0:00:35.7]} 34. Be4 {[%clk 0:00:28]} 34... Bxe4 {[%clk 0:00:34.7]} 35.
Nxe4 {[%clk 0:00:28.9]} 35... hxg4 {[%clk 0:00:34.9]} 36. fxg4 {[%clk
0:00:29.2]} 36... Ne6 {[%clk 0:00:35.6]} 37. Rd1 {[%clk 0:00:23.1]} 37... Nf4
{[%clk 0:00:33.2]} 38. Bb6 {[%clk 0:00:13.2]} 38... Rc4 {[%clk 0:00:33.1]} 39.
Nd6+ {[%clk 0:00:13.7]} 39... Bxd6 {[%clk 0:00:33.4]} 40. Rxd6 {[%clk
0:00:14.6]} 40... Ke7 {[%clk 0:00:32.3]} 41. Rd8 {[%clk 0:00:13.5]} 41... Nh3+
{[%clk 0:00:29]} 42. Kg2 {[%clk 0:00:11.2]} 42... Nf4+ {[%clk 0:00:28.9]} 43.
Kf3 {[%clk 0:00:11.3]} 43... Ne6 {[%clk 0:00:24.7]} 44. Rb8 {[%clk 0:00:10.9]}
44... e4+ {[%clk 0:00:24]} 45. Ke3 {[%clk 0:00:10.6]} 45... Nf4 {[%clk
0:00:23.9]} 46. Rxb7+ {[%clk 0:00:10.4]} 46... Ke6 {[%clk 0:00:24.5]} 47. Ra7
{[%clk 0:00:08.8]} 47... Nd5+ {[%clk 0:00:24.4]} 48. Ke2 {[%clk 0:00:09.2]}
48... Nf4+ {[%clk 0:00:22]} 49. Kf2 {[%clk 0:00:09.3]} 49... Nd3+ {[%clk
0:00:22.4]} 50. Ke3 {[%clk 0:00:05.9]} 50... Nxb2 {[%clk 0:00:20.7]} 51. Rxa6
{[%clk 0:00:06.4]} 51... Rxc3+ {[%clk 0:00:20.6]} 52. Kxe4 {[%clk 0:00:06.9]}
52... Rc4+ {[%clk 0:00:20.5]} 53. Bd4+ {[%clk 0:00:07.1]} 53... Kf7 {[%clk
0:00:19.2]} 54. Rxf6+ {[%clk 0:00:07.1]} 54... Ke7 {[%clk 0:00:19]} 55. Rb6
{[%clk 0:00:06.3]} 55... Na4 {[%clk 0:00:17]} 56. Rb7+ {[%clk 0:00:06.3]} 56...
Kd6 {[%clk 0:00:17.3]} 57. Kd3 {[%clk 0:00:06.7]} 57... Rc1 {[%clk 0:00:15.5]}
58. a6 {[%clk 0:00:06.5]} 58... Rd1+ {[%clk 0:00:15.3]} 59. Ke3 {[%clk
0:00:06.7]} 59... Re1+ {[%clk 0:00:15.4]} 60. Kd2 {[%clk 0:00:07]} 60... Re4
{[%clk 0:00:15.7]} 61. Kd3 {[%clk 0:00:07.1]} 61... Re8 {[%clk 0:00:10.3]} 62.
a7 {[%clk 0:00:07.1]} 1-0

[Event "Early-Titled-Tuesday-Blitz-July-09-2024"]
[Site "Chess.com"]
[Date "2024.07.09"]
[Round "1"]
[White "Vision_64"]
[Black "ManMish2"]
[Result "0-1"]
[WhiteElo "2283"]
[BlackElo "2614"]
[TimeControl "180+1"]
[EndTime "8:08:16 PDT"]
[Termination "ManMish2 won by resignation"]

1. e4 {[%clk 0:02:55.8]} 1... e5 {[%clk 0:02:59.8]} 2. Nf3 {[%clk 0:02:54.5]}
2... Nc6 {[%clk 0:03:00.2]} 3. d4 {[%clk 0:02:50.4]} 3... exd4 {[%clk
0:02:58.8]} 4. Nxd4 {[%clk 0:02:50.1]} 4... Nf6 {[%clk 0:02:59]} 5. Nc3 {[%clk
0:02:49.5]} 5... Bb4 {[%clk 0:02:57.9]} 6. Nxc6 {[%clk 0:02:46.3]} 6... bxc6
{[%clk 0:02:58.8]} 7. Qd4 {[%clk 0:02:38.8]} 7... Qe7 {[%clk 0:02:49.5]} 8. Bd3
{[%clk 0:02:33.7]} 8... c5 {[%clk 0:02:14.1]} 9. Qe3 {[%clk 0:02:23.6]} 9... d6
{[%clk 0:02:12.3]} 10. Bd2 {[%clk 0:02:21.3]} 10... O-O {[%clk 0:02:10.8]} 11.
f3 {[%clk 0:02:15.8]} 11... Be6 {[%clk 0:02:05.7]} 12. a3 {[%clk 0:02:11.7]}
12... Ba5 {[%clk 0:02:04]} 13. e5 {[%clk 0:01:45.9]} 13... dxe5 {[%clk
0:01:50.5]} 14. Qxe5 {[%clk 0:01:37]} 14... Rab8 {[%clk 0:01:45.9]} 15. b3
{[%clk 0:01:27.4]} 15... Nd7 {[%clk 0:01:35.7]} 16. Qe4 {[%clk 0:01:21.5]} 16...
f5 {[%clk 0:01:25.5]} 17. Qe2 {[%clk 0:01:19.7]} 17... Qf6 {[%clk 0:01:24]} 18.
O-O {[%clk 0:00:41.9]} 18... Rbe8 {[%clk 0:01:21.5]} 19. Nb5 {[%clk 0:00:33.4]}
19... Bxb3 {[%clk 0:01:01.8]} 20. Qf2 {[%clk 0:00:23.3]} 20... Bb6 {[%clk
0:00:26.1]} 21. Bc3 {[%clk 0:00:16.8]} 21... Qxc3 {[%clk 0:00:15.8]} 22. Nxc3
{[%clk 0:00:16.2]} 22... c4 {[%clk 0:00:15.8]} 23. cxb3 {[%clk 0:00:14.4]} 23...
cxd3 {[%clk 0:00:13.2]} 24. Rad1 {[%clk 0:00:11.2]} 24... Bxf2+ {[%clk
0:00:11.8]} 25. Kxf2 {[%clk 0:00:11.3]} 25... Ne5 {[%clk 0:00:10]} 26. Rfe1
{[%clk 0:00:09.9]} 26... Re7 {[%clk 0:00:10.1]} 27. f4 {[%clk 0:00:09.2]} 27...
Ng4+ {[%clk 0:00:10.1]} 28. Kg3 {[%clk 0:00:09.1]} 28... Re2 {[%clk 0:00:10.2]}
29. Nxe2 {[%clk 0:00:08]} 29... dxe2 {[%clk 0:00:10.3]} 30. Rxe2 {[%clk
0:00:08.4]} 30... Rb8 {[%clk 0:00:10.8]} 31. Rd3 {[%clk 0:00:07.9]} 31... Nf6
{[%clk 0:00:09.2]} 32. Re7 {[%clk 0:00:06.9]} 32... Ne4+ {[%clk 0:00:09.7]} 33.
Kf3 {[%clk 0:00:07.5]} 33... c5 {[%clk 0:00:07.2]} 34. b4 {[%clk 0:00:05.8]}
34... cxb4 {[%clk 0:00:06.7]} 35. axb4 {[%clk 0:00:05.9]} 35... h6 {[%clk
0:00:06.9]} 36. Rb3 {[%clk 0:00:05.4]} 36... a5 {[%clk 0:00:06.1]} 37. b5 {[%clk
0:00:05.4]} 37... Nd2+ {[%clk 0:00:06.3]} 38. Ke2 {[%clk 0:00:05]} 38... Nxb3
{[%clk 0:00:07.2]} 39. Kd3 {[%clk 0:00:05.2]} 39... Rxb5 {[%clk 0:00:07.2]} 40.
Kc4 {[%clk 0:00:05]} 40... Rb8 {[%clk 0:00:07.8]} 41. Ra7 {[%clk 0:00:03.4]}
41... Nd2+ {[%clk 0:00:08]} 42. Kd5 {[%clk 0:00:03.2]} 42... Ne4 {[%clk
0:00:08.9]} 43. Rxa5 {[%clk 0:00:02.6]} 43... Kh7 {[%clk 0:00:06.8]} 44. Ke5
{[%clk 0:00:03]} 44... Rf8 {[%clk 0:00:05.2]} 45. Ra7 {[%clk 0:00:03.3]} 45...
Nf2 {[%clk 0:00:05.6]} 46. g3 {[%clk 0:00:03.5]} 46... Ng4+ {[%clk 0:00:05.6]}
47. Ke6 {[%clk 0:00:03.8]} 47... Nxh2 {[%clk 0:00:06.5]} 48. Ke7 {[%clk
0:00:03.8]} 48... Rf6 {[%clk 0:00:07.2]} 49. Ke8 {[%clk 0:00:03.8]} 49... Ng4
{[%clk 0:00:08.1]} 50. Ke7 {[%clk 0:00:04.1]} 50... h5 {[%clk 0:00:08.5]} 51.
Ke8 {[%clk 0:00:04.6]} 51... Kg6 {[%clk 0:00:09.1]} 52. Ra3 {[%clk 0:00:05.1]}
52... Nf2 {[%clk 0:00:09.3]} 53. Ra1 {[%clk 0:00:06]} 53... Ne4 {[%clk
0:00:09.9]} 54. Rg1 {[%clk 0:00:06.4]} 54... Rd6 {[%clk 0:00:10.4]} 55. Ke7
{[%clk 0:00:07]} 55... Rd3 {[%clk 0:00:10.8]} 56. g4 {[%clk 0:00:06.5]} 56...
hxg4 {[%clk 0:00:11.1]} 0-1

[Event "Early-Titled-Tuesday-Blitz-July-09-2024"]
[Site "Chess.com"]
[Date "2024.07.09"]
[Round "1"]
[White "SirStrateg"]
[Black "EternalNight8"]
[Result "1-0"]
[WhiteElo "2684"]
[BlackElo "2370"]
[TimeControl "180+1"]
[EndTime "8:08:17 PDT"]
[Termination "SirStrateg won by resignation"]

1. d4 {[%clk 0:03:00.9]} 1... Nf6 {[%clk 0:02:59.5]} 2. Bg5 {[%clk 0:03:00.6]}
2... d5 {[%clk 0:02:58.1]} 3. Bxf6 {[%clk 0:03:00.7]} 3... exf6 {[%clk 0:02:57]}
4. Nd2 {[%clk 0:02:51.5]} 4... Bd6 {[%clk 0:02:54.5]} 5. g3 {[%clk 0:02:45]}
5... O-O {[%clk 0:02:52.5]} 6. Bg2 {[%clk 0:02:45.4]} 6... c6 {[%clk 0:02:52.7]}
7. e4 {[%clk 0:02:41]} 7... dxe4 {[%clk 0:02:49.4]} 8. Nxe4 {[%clk 0:02:40.9]}
8... Re8 {[%clk 0:02:38.2]} 9. Kf1 {[%clk 0:02:34.8]} 9... Bc7 {[%clk
0:02:24.6]} 10. c3 {[%clk 0:02:25]} 10... Bf5 {[%clk 0:02:15.2]} 11. f3 {[%clk
0:02:14.8]} 11... Nd7 {[%clk 0:02:10.9]} 12. Ne2 {[%clk 0:02:12]} 12... Bg6
{[%clk 0:01:55.7]} 13. Kf2 {[%clk 0:01:59.7]} 13... f5 {[%clk 0:01:54.5]} 14.
Nd2 {[%clk 0:01:56.2]} 14... Qe7 {[%clk 0:01:53]} 15. Re1 {[%clk 0:01:45.1]}
15... Qg5 {[%clk 0:01:40.8]} 16. f4 {[%clk 0:01:39.1]} 16... Qh6 {[%clk
0:01:35.9]} 17. Nf3 {[%clk 0:01:25.9]} 17... Bh5 {[%clk 0:01:32.3]} 18. Neg1
{[%clk 0:01:20.3]} 18... Nf6 {[%clk 0:01:30.6]} 19. Rxe8+ {[%clk 0:01:02.5]}
19... Rxe8 {[%clk 0:01:31.5]} 20. Qd3 {[%clk 0:01:00.7]} 20... Bxf3 {[%clk
0:00:46.1]} 21. Nxf3 {[%clk 0:00:56.5]} 21... Ng4+ {[%clk 0:00:45.5]} 22. Kg1
{[%clk 0:00:39.7]} 22... g6 {[%clk 0:00:38.3]} 23. h3 {[%clk 0:00:30.7]} 23...
Nf6 {[%clk 0:00:36.4]} 24. Re1 {[%clk 0:00:27.6]} 24... Qf8 {[%clk 0:00:35.9]}
25. Rxe8 {[%clk 0:00:25.9]} 25... Qxe8 {[%clk 0:00:36.8]} 26. Ne5 {[%clk
0:00:22.7]} 26... Nh5 {[%clk 0:00:32.9]} 27. Kh2 {[%clk 0:00:19.4]} 27... Qe6
{[%clk 0:00:29.2]} 28. d5 {[%clk 0:00:17.8]} 28... Qe8 {[%clk 0:00:23.9]} 29.
dxc6 {[%clk 0:00:17.2]} 29... Bxe5 {[%clk 0:00:24]} 30. fxe5 {[%clk 0:00:17.5]}
30... bxc6 {[%clk 0:00:24.2]} 31. Qd6 {[%clk 0:00:13.5]} 31... f4 {[%clk
0:00:19.5]} 32. gxf4 {[%clk 0:00:13.4]} 32... Nxf4 {[%clk 0:00:20.4]} 33. Bxc6
{[%clk 0:00:13.8]} 33... Qc8 {[%clk 0:00:18.5]} 34. Qd7 {[%clk 0:00:11.2]} 34...
Qb8 {[%clk 0:00:18.2]} 35. Qe8+ {[%clk 0:00:10.1]} 35... Qxe8 {[%clk 0:00:17.5]}
36. Bxe8 {[%clk 0:00:11]} 36... Kf8 {[%clk 0:00:17.9]} 37. Bb5 {[%clk
0:00:09.9]} 37... Ke7 {[%clk 0:00:17.9]} 38. Bc4 {[%clk 0:00:08.9]} 38... h5
{[%clk 0:00:15.6]} 39. Kg3 {[%clk 0:00:09.3]} 39... g5 {[%clk 0:00:15.4]} 40. h4
{[%clk 0:00:08.4]} 40... f6 {[%clk 0:00:15.2]} 41. exf6+ {[%clk 0:00:06.8]}
41... Kxf6 {[%clk 0:00:16.1]} 42. a4 {[%clk 0:00:03.9]} 42... Ng6 {[%clk
0:00:13.8]} 43. hxg5+ {[%clk 0:00:04.2]} 43... Kxg5 {[%clk 0:00:14.7]} 44. b4
{[%clk 0:00:04.3]} 44... h4+ {[%clk 0:00:15]} 45. Kf2 {[%clk 0:00:03]} 45... Nf4
{[%clk 0:00:13.7]} 46. Bf1 {[%clk 0:00:03.3]} 46... Kg4 {[%clk 0:00:13.1]} 47.
a5 {[%clk 0:00:02.9]} 47... Nd5 {[%clk 0:00:12.2]} 48. b5 {[%clk 0:00:02.3]}
48... Nxc3 {[%clk 0:00:09.8]} 49. b6 {[%clk 0:00:02.8]} 49... axb6 {[%clk
0:00:10.1]} 50. a6 {[%clk 0:00:02.3]} 50... Nd5 {[%clk 0:00:08.4]} 51. a7 {[%clk
0:00:02.4]} 51... Nc7 {[%clk 0:00:08.6]} 52. Bg2 {[%clk 0:00:01.7]} 52... b5
{[%clk 0:00:08.2]} 53. Ke3 {[%clk 0:00:02.1]} 53... Kg3 {[%clk 0:00:07.7]} 54.
Bh1 {[%clk 0:00:02.4]} 54... h3 {[%clk 0:00:05.5]} 55. Kd4 {[%clk 0:00:02.8]}
55... Kh2 {[%clk 0:00:03.6]} 56. Be4 {[%clk 0:00:03]} 56... Kg1 {[%clk
0:00:03.5]} 57. Kc5 {[%clk 0:00:03.4]} 57... h2 {[%clk 0:00:01.8]} 58. Kb6
{[%clk 0:00:03.9]} 58... b4 {[%clk 0:00:02]} 59. Kxc7 {[%clk 0:00:04.2]} 59...
b3 {[%clk 0:00:02.5]} 60. a8=Q {[%clk 0:00:04.6]} 60... b2 {[%clk 0:00:02.6]}
61. Qa2 {[%clk 0:00:05.2]} 1-0